fUSD/lending_fUSD_20250213
["ID","MTS","AMOUNT","RATE_DAILY","PERIOD"]
[352970053,1739467620302,2141.4173,8.836e-05,2]
[352970054,1739467645129,1326.1187,8.699e-05,2]
[352970055,1739467647678,6532.464,8.973e-05,2]
[352970056,1739467647704,739.4891,8.973e-05,2]
[352970057,1739467653532,9260.5109,8.836e-05,2]
[352970058,1739467653556,5108.0532,8.836e-05,2]
[352970059,1739467669667,4891.9468,8.836e-05,2]
[352970060,1739467669688,10000.0,8.836e-05,2]
[352970061,1739467669710,5108.0532,8.836e-05,2]
[352970062,1739467680244,4891.9468,0.0001,2]
[352970063,1739467680266,10000.0,0.0001,2]
[352970064,1739467680288,10000.0,0.0001,2]
[352970065,1739467680310,10000.0,0.0001,2]
[352970066,1739467680331,10000.0,0.0001,2]
[352970067,1739467680352,7143.37527894,0.0001,2]
[352970068,1739467684247,2856.62472106,0.0001,2]
[352970069,1739467684271,10000.0,0.0001,2]
[352970070,1739467684295,10000.0,0.0001,2]
[352970071,1739467684319,10000.0,0.0001,2]
[352970072,1739467684343,10000.0,0.0001,2]
[352970073,1739467684367,10000.0,0.0001,2]
[352970074,1739467684391,10000.0,0.0001,2]
[352970075,1739467684418,10000.0,0.0001,2]
[352970076,1739467684441,10000.0,0.0001,2]
[352970077,1739467684464,10000.0,0.0001,2]
[352970078,1739467684488,10000.0,0.0001,2]
[352970079,1739467684510,10000.0,0.0001,2]
[352970080,1739467684533,10000.0,0.0001,2]
[352970081,1739467684556,10000.0,0.0001,2]
[352970082,1739467684578,10000.0,0.0001,2]
[352970083,1739467684600,10000.0,0.0001,2]
[352970084,1739467684621,10000.0,0.0001,2]
[352970085,1739467684643,10000.0,0.0001,2]
[352970086,1739467684670,10000.0,0.0001,2]
[352970087,1739467684695,10000.0,0.0001,2]
[352970088,1739467684722,10000.0,0.0001,2]
[352970089,1739467684746,10000.0,0.0001,2]
[352970090,1739467684770,10000.0,0.0001,2]
[352970091,1739467684794,10000.0,0.0001,2]
[352970092,1739467684817,10000.0,0.0001,2]
[352970093,1739467684841,10000.0,0.0001,2]
[352970094,1739467684865,10000.0,0.0001,2]
[352970095,1739467684888,10000.0,0.0001,2]
[352970096,1739467684913,10000.0,0.0001,2]
[352970097,1739467684941,44307.47589107,0.0001,2]
[352970098,1739467687341,853.0541,8.836e-05,2]
[352970099,1739467688541,312.5832,8.699e-05,2]
[352970100,1739467690635,1186.98210525,9.5e-05,2]
[352970104,1739467723037,500.0,8.851e-05,2]
[352970108,1739467744323,525.0742,8.836e-05,2]
[352970109,1739467749991,2462.9468,8.836e-05,2]
[352970110,1739467768854,1311.4611,8.699e-05,2]
[352970113,1739467784535,496.4363,8.973e-05,2]
[352970114,1739467805708,266.6488,8.699e-05,2]
[352970115,1739467810468,9236.9149,8.836e-05,2]
[352970116,1739467810490,10000.0,8.836e-05,2]
[352970117,1739467810512,10000.0,8.836e-05,2]
[352970118,1739467810534,7029.3371,8.836e-05,2]
[352970119,1739467811743,2970.6629,8.699e-05,2]
[352970120,1739467811765,10000.0,8.699e-05,2]
[352970121,1739467811789,10000.0,8.699e-05,2]
[352970122,1739467811813,8054.0482,8.699e-05,2]
[352970123,1739467821076,1945.9518,8.973e-05,2]
[352970124,1739467821099,3054.0482,8.973e-05,2]
[352970125,1739467830102,2500.0,8.851e-05,2]
[352970131,1739467832114,-164.03,0.00010137,2]
[352970132,1739467832124,-150.0,0.00010252,2]
[352970133,1739467832134,-1550.56949989,0.00010313,2]
[352970134,1739467832144,-158.97824152,0.00010368,2]
[352970135,1739467832153,-2124.46,0.00010413,2]
[352970136,1739467832163,-1000.0,0.00010468,2]
[352970137,1739467832173,-1100.0,0.00010468,2]
[352970138,1739467832183,-500.0,0.00010468,2]
[352970139,1739467832192,-150.76613659,0.00010999,2]
[352970140,1739467832202,-150.0,0.00010999,2]
[352970141,1739467832211,-41046.61183165,0.00011,2]
[352970142,1739467832223,-35499.84912686,0.00011,2]
[352970149,1739467833373,500.0,8.851e-05,2]
[352970150,1739467836004,1510.063,8.699e-05,2]
[352970380,1739467840727,-1177.86146382,0.00010413,2]
[352970382,1739467840739,-389.84869795,0.00010413,2]
[352970384,1739467840750,-3583.06796825,0.00010413,2]
[352970490,1739467841891,-1919.40034774,0.00010413,2]
[352970493,1739467841903,-528.64311939,0.00010413,2]
[352970495,1739467841914,-1235.54984516,0.00010413,2]
[352970585,1739467842772,2435.8888,8.699e-05,2]
[352970590,1739467842793,104.9758,8.699e-05,2]
[352970661,1739467843467,-106.66362038,0.00010413,2]
[352970665,1739467843496,-407.77031758,0.00010413,2]
[352970908,1739467846075,-1469.13390772,0.00010413,2]
[352970909,1739467846085,-2114.80968986,0.00011,2]
[352970910,1739467846096,-15059.83369762,0.00011,2]
[352970912,1739467852697,9895.0242,8.836e-05,2]
[352970913,1739467852722,10000.0,8.836e-05,2]
[352970914,1739467852744,8095.8315,8.836e-05,2]
[352970915,1739467875904,1904.1685,8.836e-05,2]
[352970916,1739467875944,8949.2681,8.836e-05,2]
[352970917,1739467881998,1050.7319,8.699e-05,2]
[352970918,1739467882024,5569.2037,8.699e-05,2]
[352970919,1739467886333,2322.5407,8.836e-05,2]
[352970920,1739467888016,733.2751,8.699e-05,2]
[352970921,1739467916695,1374.9805,8.973e-05,2]
[352970922,1739467916716,10000.0,8.973e-05,2]
[352970923,1739467916739,10000.0,8.973e-05,2]
[352970924,1739467916764,64307.6573,8.973e-05,2]
[352970925,1739467918907,447.3922,8.119e-05,2]
[352970926,1739467927002,5000.0,8.973e-05,2]
[352970927,1739467934066,1397.1313,8.699e-05,2]
[352970928,1739467938124,312.4559,8.699e-05,2]
[352970929,1739467946560,785.0279,8.836e-05,2]
[352970930,1739467949049,2011.093,8.699e-05,2]
[352970931,1739467955059,1000.0,8.851e-05,2]
[352970932,1739467962420,6390.8256,8.256e-05,2]
[352970933,1739467965347,500.0,8.851e-05,2]
[352970934,1739467970579,36266.252,8.836e-05,2]
[352970935,1739467991748,4760.0,8.699e-05,2]
[352970936,1739467991796,26282.6614,8.699e-05,2]
[352970937,1739468010660,2500.0,8.851e-05,2]
[352970938,1739468014442,1342.9371,8.699e-05,2]
[352970939,1739468033091,20725.6806,8.973e-05,2]
[352970940,1739468045464,4481.1483,8.973e-05,2]
[352970941,1739468102535,500.0,8.851e-05,2]
[352970942,1739468127757,36266.252,8.836e-05,2]
[352970943,1739468129325,55955.2957,8.836e-05,2]
[352970944,1739468137875,4858.3452,8.836e-05,2]
[352970945,1739468140938,2007.9348,8.699e-05,2]
[352970946,1739468147094,828.1406,8.851e-05,2]
[352970947,1739468166669,13918.6808,8.836e-05,2]
[352970948,1739468183783,13639.3832,8.699e-05,2]
[352970949,1739468199688,3105.4608,8.836e-05,2]
[352970950,1739468202367,1535.9195,8.851e-05,2]
[352970951,1739468285104,14311.2888,8.836e-05,2]
[352970952,1739468306087,20048.1177,8.836e-05,2]
[352970953,1739468325518,4627.1419,8.836e-05,2]
[352970954,1739468333083,6972.3257,8.836e-05,2]
[352970955,1739468344815,288.77,0.00011,10]
[352970956,1739468549562,2247.04,8.72e-05,2]
[352970957,1739468565130,2126.86095476,0.00020881,63]
[352970958,1739468843760,-201.53,0.00010137,2]
[352970959,1739468843787,-150.0,0.00010152,2]
[352970960,1739468844052,-157.0942178,0.00010168,2]
[352970961,1739468946431,-500.0,0.00010268,2]
[352970962,1739468946456,-1000.0,0.00010268,2]
[352970963,1739468946478,-1100.0,0.00010268,2]
[352970964,1739468946501,-150.0,0.0001028,2]
[352970965,1739468946526,-849.44,0.00010292,2]
[352970966,1739468946549,-193.85,0.00010306,2]
[352970967,1739468946572,-1105.385824,0.00010308,2]
[352970968,1739468952171,-3068.084176,0.00010308,2]
[352970969,1739468952203,-1500.0,0.00010321,2]
[352970970,1739468952230,-242.54,0.00010321,2]
[352970971,1739468952256,-1924.75,0.00010453,2]
[352970972,1739468952284,-150.0,0.00010466,2]
[352970973,1739468952311,-157.09421779,0.00010503,2]
[352970974,1739468952340,-492.58,0.00010598,2]
[352970975,1739468952370,-684.79,0.00010667,2]
[352970976,1739468952397,-4723.93,0.00010671,2]
[352970977,1739468952423,-726.08,0.00010671,2]
[352970978,1739468952450,-2000.0,0.00010684,2]
[352970979,1739468952478,-544.95,0.00010691,2]
[352970980,1739468952505,-21332.27003046,0.000108,2]
[352970981,1739468952694,-157.09421779,0.00010838,2]
[352970982,1739468952722,-975.35,0.00010843,2]
[352970983,1739468952749,-150.0,0.00010894,2]
[352970984,1739468952774,-500.0,0.00010895,2]
[352970985,1739468955610,6371.51541089,0.00010466,2]
[352970986,1739469017971,500.0,0.00010268,2]
[352970987,1739469021472,1000.0,0.00010268,2]
[352970988,1739469021564,1000.0,0.00010268,2]
[352971001,1739469032351,-300.0,0.00010911,2]
[352971002,1739469032362,-23988.53,0.00010912,2]
[352971003,1739469032374,-2000.0,0.00010938,2]
[352971004,1739469032385,-3992.6,0.00010957,2]
[352971005,1739469032394,-181.81,0.00010965,2]
[352971006,1739469032404,-300.0,0.00010977,2]
[352971007,1739469032415,-200.0,0.0001098,2]
[352971008,1739469032424,-2655.47,0.00010982,2]
[352971009,1739469032434,-2247.04,0.00010984,2]
[352971010,1739469032444,-250.0,0.00010998,2]
[352971011,1739469032454,-33436.52574464,0.00011,2]
[352971012,1739469032479,-16849.9792475,0.00011,2]
[352971013,1739469032731,-869.22019706,0.00011,2]
[352971014,1739469032743,-200.0,0.00011,2]
[352971015,1739469032752,-200.0,0.00011,2]
[352971016,1739469032762,-168.06328499,0.00011,2]
[352971017,1739469032771,-889.04,0.00011012,2]
[352971018,1739469032780,-200.0,0.0001111,2]
[352971019,1739469032789,-200.0,0.0001111,2]
[352971020,1739469032799,-552.78384624,0.0001112,2]
[352971231,1739469040636,-3447.21615376,0.0001112,2]
[352971232,1739469040646,-4000.0,0.0001118,2]
[352971233,1739469040656,-1000.0,0.00011207,2]
[352971234,1739469040665,-200.0,0.00011221,2]
[352971235,1739469040675,-200.0,0.00011221,2]
[352971236,1739469040684,-500.0,0.00011233,2]
[352971237,1739469040693,-4000.0,0.0001125,2]
[352971238,1739469040703,-150.0,0.00011295,2]
[352971239,1739469040712,-200.0,0.00011333,2]
[352971240,1739469040721,-4000.0,0.0001134,2]
[352971241,1739469040731,-4000.0,0.0001142,2]
[352971242,1739469040741,-200.0,0.00011447,2]
[352971243,1739469040750,-431.95362761,0.00011454,2]
[352971244,1739469040759,-4000.0,0.0001149,2]
[352971246,1739469040769,-2751.0,0.00011507,2]
[352971248,1739469040779,-1271.65011658,0.00011558,2]
[352971250,1739469040788,-7958.69,0.00011594,2]
[352971252,1739469040797,-1000.0,0.00011638,2]
[352971254,1739469040807,-1000.0,0.00011638,2]
[352971256,1739469040818,-2971.16359664,0.00011639,2]
[352971258,1739469040827,-1976.9,0.00011658,2]
[352971260,1739469040837,-7964.39150341,0.0001176,2]
[352971262,1739469040847,-155.64,0.00011775,2]
[352971264,1739469040857,-1852.42,0.00011781,2]
[352971266,1739469040867,-500.0,0.00011787,2]
[352971268,1739469040876,-680.91,0.00011787,2]
[352971270,1739469040887,-680.91,0.0001179,2]
[352971272,1739469040897,-680.91,0.00011793,2]
[352971274,1739469040907,-1271.65011653,0.00011794,2]
[352971276,1739469040916,-680.91,0.00011796,2]
[352971278,1739469040926,-680.91,0.00011799,2]
[352971280,1739469040936,-1597.1,0.00011801,2]
[352971282,1739469040946,-680.91,0.00011802,2]
[352971284,1739469040960,-23900.0,0.00011803,2]
[352971286,1739469040970,-150.0,0.00011805,2]
[352971288,1739469040981,-680.91,0.00011806,2]
[352971290,1739469040991,-680.91,0.00011809,2]
[352971292,1739469041000,-680.91,0.00011812,2]
[352971295,1739469041010,-680.91,0.00011815,2]
[352971297,1739469041020,-680.91,0.00011818,2]
[352971299,1739469041030,-680.91,0.00011821,2]
[352971301,1739469041040,-680.91,0.00011824,2]
[352971303,1739469041049,-680.91,0.00011827,2]
[352971305,1739469041060,-680.91,0.0001183,2]
[352971307,1739469041070,-680.91,0.00011833,2]
[352971309,1739469041079,-176.58,0.00011833,2]
[352971311,1739469041089,-3880.99,0.00011834,2]
[352971313,1739469041100,-680.91,0.00011836,2]
[352971315,1739469041111,-680.91,0.0001184,2]
[352971317,1739469041123,-680.91,0.00011843,2]
[352971319,1739469041134,-680.91,0.00011846,2]
[352971321,1739469041145,-3834.83439553,0.00011851,2]
[352971323,1739469041156,-3397.39,0.00011894,2]
[352971325,1739469041167,-255.0,0.0001194,2]
[352971327,1739469041180,-420.0,0.00011991,2]
[352971329,1739469041190,-150.0,0.00012003,2]
[352971331,1739469041200,-544.95,0.00012027,2]
[352971334,1739469041211,-500.0,0.00012027,2]
[352971336,1739469041221,-1271.65011653,0.0001203,2]
[352971338,1739469041231,-204.29,0.0001207,2]
[352971340,1739469041241,-9999.99,0.00012087,2]
[352971342,1739469041251,-150.99,0.00012087,2]
[352971344,1739469041261,-299.99,0.00012087,2]
[352971346,1739469041270,-999.99,0.00012087,2]
[352971348,1739469041280,-9999.99,0.00012087,2]
[352971349,1739469041289,-1385.16,0.00012087,2]
[352971351,1739469041299,-1004.01,0.00012087,2]
[352971353,1739469041310,-499.99,0.00012087,2]
[352971356,1739469041320,-813.79,0.00012087,2]
[352971358,1739469041330,-329.2,0.00012087,2]
[352971359,1739469041339,-3608.77,0.00012087,2]
[352971362,1739469041348,-150.99,0.00012087,2]
[352971363,1739469041358,-3005.36,0.00012087,2]
[352971366,1739469041372,-10008.65,0.00012087,2]
[352971368,1739469041384,-1055.05,0.0001212,2]
[352971370,1739469041394,-164.84,0.0001214,2]
[352971372,1739469041404,-1271.65011653,0.00012265,2]
[352971374,1739469041414,-150.0,0.00012304,2]
[352971376,1739469041425,-150.0,0.00012304,2]
[352971378,1739469041435,-150.0,0.00012304,2]
[352971380,1739469041446,-150.00000001,0.00012304,2]
[352971382,1739469041457,-150.0,0.00012304,2]
[352971384,1739469041468,-180.9,0.00012378,2]
[352971387,1739469041478,-150.0,0.00012441,2]
[352971389,1739469041491,-150.0,0.00012475,2]
[352971391,1739469041500,-294.6040025,0.000125,2]
[352971392,1739469041510,-1271.65011653,0.00012501,2]
[352971395,1739469041521,-150.0,0.00012578,2]
[352971397,1739469041530,-1000.0,0.00012608,2]
[352971399,1739469041540,-150.0,0.00012646,2]
[352971401,1739469041550,-150.0,0.00012646,2]
[352971403,1739469041560,-184.31,0.00012662,2]
[352971405,1739469041570,-150.0,0.00012714,2]
[352971407,1739469041580,-1271.65011653,0.00012737,2]
[352971409,1739469041590,-4553.66770587,0.00012793,2]
[352971411,1739469041600,-250.0,0.00012805,2]
[352971413,1739469041610,-150.0,0.00012817,2]
[352971415,1739469041620,-150.0,0.00012851,2]
[352971417,1739469041631,-4553.66770585,0.00012892,2]
[352971419,1739469041641,-500.0,0.00012892,2]
[352971421,1739469041652,-500.0,0.00012892,2]
[352971424,1739469041662,-500.0,0.00012892,2]
[352971426,1739469041672,-426.79709903,0.00012892,2]
[352971428,1739469041682,-175.25457586,0.00012892,2]
[352971430,1739469041691,-500.0,0.00012892,2]
[352971453,1739469041906,-492.05189903,0.00012892,2]
[352971457,1739469041934,-29999.99,0.00012893,2]
[352971459,1739469041944,-1271.65011653,0.00012973,2]
[352971461,1739469041954,-150.0,0.00012988,2]
[352971463,1739469041963,-150.0,0.00012988,2]
[352971465,1739469041973,-150.0,0.00012988,2]
[352971467,1739469041983,-4553.66770585,0.0001299,2]
[352971469,1739469041993,-550.0,0.00013,2]
[352971471,1739469042003,-2439.41834799,0.00013,2]
[352971473,1739469042013,-500.0,0.00013008,2]
[352971474,1739469042022,-1000.0,0.00013008,2]
[352971477,1739469042032,-1000.0,0.00013008,2]
[352971479,1739469042041,-500.0,0.00013041,2]
[352971481,1739469042052,-168.49,0.00013044,2]
[352971483,1739469042062,-433.0,0.00013084,2]
[352971485,1739469042071,-4553.66770585,0.00013089,2]
[352971487,1739469042081,-1500.0,0.000131,4]
[352971489,1739469042090,-150.0,0.00013124,2]
[352971491,1739469042100,-150.0,0.00013159,2]
[352971493,1739469042110,-587.0,0.00013178,2]
[352971495,1739469042121,-4553.66770585,0.00013187,2]
[352971497,1739469042131,-3000.0,0.000132,4]
[352971499,1739469042141,-1271.65011653,0.00013208,2]
[352971501,1739469042150,-2247.04,0.00013248,2]
[352971503,1739469042160,-150.0,0.00013261,2]
[352971505,1739469042169,-4553.66770585,0.00013286,2]
[352971507,1739469042178,-1139.0,0.000133,2]
[352971509,1739469042187,-4500.0,0.000133,4]
[352971511,1739469042196,-150.0,0.00013329,2]
[352971512,1739469042206,-150.0,0.00013329,2]
[352971514,1739469042215,-544.95,0.00013363,2]
[352971516,1739469042224,-184.31,0.00013365,2]
[352971518,1739469042234,-4553.66770585,0.00013384,2]
[352971520,1739469042244,-150.0,0.00013398,2]
[352971522,1739469042253,-6000.0,0.000134,4]
[352971524,1739469042262,-4436.343,0.00013404,2]
[352971526,1739469042272,-153.0,0.00013428,2]
[352971528,1739469042281,-153.0,0.00013428,2]
[352971531,1739469042291,-153.0,0.00013428,2]
[352971533,1739469042300,-153.0,0.00013428,2]
[352971534,1739469042309,-153.0,0.00013428,2]
[352971537,1739469042319,-153.0,0.00013428,2]
[352971538,1739469042328,-153.0,0.00013428,2]
[352971540,1739469042338,-153.0,0.00013428,2]
[352971543,1739469042347,-153.0,0.00013428,2]
[352971545,1739469042357,-153.0,0.00013428,2]
[352971547,1739469042366,-153.0,0.00013428,2]
[352971549,1739469042381,-153.0,0.00013428,2]
[352971550,1739469042391,-153.0,0.00013439,2]
[352971553,1739469042401,-153.0,0.00013439,2]
[352971554,1739469042411,-153.0,0.00013439,2]
[352971556,1739469042422,-1271.65011653,0.00013444,2]
[352971559,1739469042432,-201.242,0.00013467,2]
[352971561,1739469042442,-317.78215829,0.0001348,2]
[352971563,1739469042451,-4553.66770585,0.00013483,2]
[352971565,1739469042462,-150.0,0.00013485,2]
[352971567,1739469042471,-150.0,0.00013492,2]
[352971568,1739469042481,-1000.0,0.00013497,2]
[352971570,1739469042490,-4095.0,0.000135,3]
[352971572,1739469042499,-7500.0,0.000135,4]
[352971574,1739469042509,-150.0,0.000135,2]
[352971576,1739469042518,-150.0,0.00013501,2]
[352971578,1739469042527,-1000.0,0.00013502,2]
[352971580,1739469042538,-150.0,0.00013504,2]
[352971582,1739469042548,-150.0,0.00013506,2]
[352971584,1739469042558,-150.0,0.00013509,2]
[352971586,1739469042567,-1000.0,0.0001351,2]
[352971588,1739469042576,-150.0,0.00013514,2]
[352971590,1739469042586,-150.0,0.00013514,2]
[352971592,1739469042595,-1000.0,0.00013517,2]
[352971594,1739469042604,-150.0,0.00013521,2]
[352971596,1739469042614,-152.0,0.00013523,3]
[352971598,1739469042625,-150.0,0.00013524,2]
[352971600,1739469042635,-300.0,0.00013528,2]
[352971602,1739469042644,-150.0,0.00013531,2]
[352971604,1739469042654,-150.0,0.00013531,2]
[352971606,1739469042663,-150.0,0.00013535,2]
[352971608,1739469042672,-1000.0,0.00013537,2]
[352971610,1739469042681,-150.0,0.00013549,2]
[352971612,1739469042690,-150.0,0.0001355,2]
[352971614,1739469042700,-1000.0,0.00013551,2]
[352971616,1739469042709,-150.0,0.00013558,2]
[352971618,1739469042718,-150.0,0.0001356,2]
[352971620,1739469042727,-150.0,0.0001356,2]
[352971622,1739469042737,-150.0,0.00013561,2]
[352971624,1739469042747,-4038.3076067,0.00013571,2]
[352971626,1739469042756,-9634.1593709,0.00013571,2]
[352971628,1739469042766,-150.0,0.00013577,2]
[352971630,1739469042775,-141758.64956008,0.0001358,2]
[352971632,1739469042784,-731.76984816,0.0001358,2]
[352971634,1739469042794,-4553.66770585,0.00013581,2]
[352971636,1739469042803,-317.78215823,0.00013583,2]
[352971638,1739469042814,-150.0,0.00013587,2]
[352971640,1739469042823,-150.0,0.00013593,2]
[352971642,1739469042832,-1000.0,0.00013596,2]
[352971644,1739469042842,-153.60690226,0.00013598,2]
[352971646,1739469042851,-170.25469243,0.00013598,2]
[352971648,1739469042860,-203.05995541,0.00013598,2]
[352971650,1739469042870,-274.66804101,0.00013598,2]
[352971652,1739469042879,-20995.2690142,0.000136,2]
[352971654,1739469042890,-1000.0,0.000136,2]
[352971656,1739469042902,-150.0,0.000136,2]
[352971658,1739469042912,-1500.0,0.000136,4]
[352971661,1739469042921,-150.0,0.00013603,2]
[352971663,1739469042932,-150.0,0.00013616,2]
[352971665,1739469042942,-159.73955405,0.00013617,2]
[352971667,1739469042951,-150.0,0.00013618,2]
[352971668,1739469042961,-150.0,0.00013618,2]
[352971671,1739469042971,-1055.05,0.00013635,2]
[352971672,1739469042980,-150.0,0.00013644,2]
[352971674,1739469042990,-150.0,0.00013645,2]
[352971677,1739469042999,-150.0,0.0001365,2]
[352971678,1739469043008,-150.0,0.00013652,2]
[352971681,1739469043018,-150.0,0.00013658,2]
[352971682,1739469043028,-150.0,0.00013662,2]
[352971685,1739469043037,-1312.0,0.00013671,2]
[352971686,1739469043047,-245.16980306,0.00013671,2]
[352971689,1739469043057,-193.19827275,0.00013671,2]
[352971690,1739469043066,-219.32950524,0.00013671,2]
[352971692,1739469043075,-150.0,0.00013671,2]
[352971694,1739469043087,-500.0,0.00013673,2]
[352971696,1739469043096,-500.0,0.00013673,2]
[352971698,1739469043106,-152.29351127,0.00013673,2]
[352971700,1739469043115,-161.45540034,0.00013673,2]
[352971702,1739469043124,-152.6462824,0.00013673,2]
[352971704,1739469043134,-151.41211742,0.00013673,2]
[352971706,1739469043143,-153.7922038,0.00013673,2]
[352971708,1739469043153,-4553.66770585,0.0001368,2]
[352971711,1739469043163,-1271.65011653,0.0001368,2]
[352971712,1739469043173,-170.25469239,0.00013682,2]
[352971715,1739469043182,-317.78215823,0.00013687,2]
[352971718,1739469043192,-202.73622945,0.00013688,2]
[352971722,1739469043201,-150.92,0.00013688,2]
[352971724,1739469043212,-150.92,0.00013688,2]
[352971727,1739469043221,-150.92,0.00013688,2]
[352971730,1739469043231,-150.92,0.00013688,2]
[352971733,1739469043240,-150.92,0.00013688,2]
[352971735,1739469043250,-150.92,0.00013688,2]
[352971737,1739469043259,-150.92,0.00013688,2]
[352971739,1739469043269,-150.92,0.00013688,2]
[352971741,1739469043280,-150.92,0.00013688,2]
[352971743,1739469043289,-150.92,0.00013688,2]
[352971745,1739469043299,-150.92,0.00013688,2]
[352971747,1739469043308,-150.92,0.00013688,2]
[352971749,1739469043317,-150.92,0.00013688,2]
[352971751,1739469043327,-150.92,0.00013688,2]
[352971753,1739469043336,-150.92,0.00013688,2]
[352971755,1739469043346,-150.92,0.00013688,2]
[352971757,1739469043355,-150.92,0.00013688,2]
[352971759,1739469043365,-150.92,0.00013688,2]
[352971761,1739469043377,-150.92,0.00013688,2]
[352971763,1739469043388,-150.92,0.00013688,2]
[352971765,1739469043398,-150.92,0.00013688,2]
[352971767,1739469043407,-150.92,0.00013688,2]
[352971769,1739469043417,-150.92,0.00013688,2]
[352971771,1739469043427,-150.92,0.00013688,2]
[352971773,1739469043436,-150.92,0.00013688,2]
[352971775,1739469043445,-150.92,0.00013688,2]
[352971777,1739469043455,-150.92,0.00013688,2]
[352971779,1739469043464,-150.92,0.00013688,2]
[352971781,1739469043473,-150.92,0.00013688,2]
[352971783,1739469043483,-150.92,0.00013688,2]
[352971785,1739469043493,-150.92,0.00013688,2]
[352971787,1739469043502,-150.92,0.00013688,2]
[352971789,1739469043512,-150.92,0.00013688,2]
[352971791,1739469043521,-150.0,0.00013688,2]
[352971793,1739469043531,-150.92,0.00013688,2]
[352971795,1739469043540,-150.0,0.00013692,2]
[352971797,1739469043549,-234.0,0.00013695,3]
[352971799,1739469043559,-1000.0,0.00013696,2]
[352971801,1739469043568,-1000.0,0.00013696,2]
[352971803,1739469043577,-1000.0,0.00013696,2]
[352971805,1739469043587,-1000.0,0.00013696,2]
[352971807,1739469043596,-1000.0,0.00013696,2]
[352971809,1739469043605,-1000.0,0.00013696,2]
[352971811,1739469043614,-300.0,0.00013697,2]
[352971813,1739469043624,-300.0,0.00013697,2]
[352971815,1739469043633,-303.49264907,0.00013697,2]
[352971817,1739469043642,-275.124712,0.00013697,2]
[352971819,1739469043652,-275.124712,0.00013697,2]
[352971821,1739469043661,-3937.01,0.00013697,2]
[352971823,1739469043670,-300.0,0.00013697,2]
[352971825,1739469043680,-178.31498511,0.00013697,3]
[352971827,1739469043690,-2139295.09032873,0.00013697,3]
[352971829,1739469043700,-300.0,0.00013698,2]
[352971831,1739469043709,-157.769189,0.00013698,2]
[352971833,1739469043718,-156.067019,0.00013698,2]
[352971835,1739469043727,-944.999344,0.00013698,2]
[352971837,1739469043737,-173.954652,0.00013698,2]
[352971839,1739469043746,-151.0,0.00013698,2]
[352971841,1739469043755,-151.0,0.00013698,2]
[352971843,1739469043764,-173.954652,0.00013698,2]
[352971845,1739469043774,-151.0,0.00013698,2]
[352971847,1739469043783,-151.0,0.00013698,2]
[352971849,1739469043792,-151.0,0.00013698,2]
[352971851,1739469043802,-151.0,0.00013698,2]
[352971853,1739469043811,-151.0,0.00013698,2]
[352971855,1739469043820,-151.0,0.00013698,2]
[352971857,1739469043829,-219.027017,0.00013698,2]
[352971859,1739469043839,-173.954652,0.00013698,2]
[352971860,1739469043849,-275.124712,0.00013698,2]
[352971861,1739469043859,-275.124712,0.00013698,2]
[352971862,1739469043868,-275.124712,0.00013698,2]
[352971863,1739469043878,-275.124712,0.00013698,2]
[352971864,1739469043888,-275.124712,0.00013698,2]
[352971865,1739469043899,-275.124712,0.00013698,2]